Cogmind - Beta 12 @@@ ROGUE MODE // 2023.04.24 @ 04:37:52 Player: Kennedy Result: Destroyed by G-34 Mercenary with Small Laser Performance ------------- Evolutions (0) 0 Regions Visited (1) 200 Robots Destroyed (11) 55 Value Destroyed (240) 240 Prototype IDs (1) 20 Alien Tech Used (0) 0 Bonus (0) 0 TOTAL SCORE: 515 Bonus ------- None Cogmind --------- Core Integrity 0/250 Matter 281/300 Energy 100/100 System Corruption 0% Temperature Cool (6) Movement Rolling (100) Location -10/Materials Parts ------- > --- POWER (1) -------- (None) > --- PROPULSION (2) --- Compact Wheel > --- UTILITY (2) ------ Visual Processing Unit Core Shielding > --- WEAPON (2) ------- Light Assault Rifle > --- INVENTORY (5) ---- EM Pulse Gun Assault Rifle Light Assault Rifle Peak State ------------ > --- POWER ------------ Light Nuclear Core > --- PROPULSION ------- Wheel Wheel > --- UTILITY ---------- Visual Processing Unit Core Shielding > --- WEAPON ----------- Improved EM Shotgun Grenade Launcher > --- INVENTORY -------- (None) [Rating: 12] Favorites ----------- Power Light Nuclear Core Engine Light Ion Engine Power Core Light Nuclear Core Propulsion Wheel Leg Improved Aluminum Leg Wheel Wheel Utility Visual Processing Unit Device Seismic Detector Processor Visual Processing Unit Protection Core Shielding Weapon EM Pulse Gun Energy Gun EM Pulse Gun Ballistic Gun Light Assault Rifle Launcher Grenade Launcher Special Weapon Mining Laser Build | -11 -10 ------- Run | Jun Mat Slots Evolved . | . . Power . | . . Propulsion . | . . Utility . | . . Weapon . | . . Parts Attached 23 | 8 15 Power 2 | 1 1 Engine 1 | 1 . Core 1 | . 1 Reactor . | . . Propulsion 9 | 4 5 Treads . | . . Leg 4 | 2 2 Wheel 5 | 2 3 Hover . | . . Flight . | . . Utility 4 | . 4 Device 1 | . 1 Storage . | . . Processor 2 | . 2 Hackware . | . . Protection 1 | . 1 Artifact . | . . Weapon 8 | 3 5 Energy Gun 3 | 2 1 Energy Cannon . | . . Ballistic Gun 3 | 1 2 Ballistic Cannon . | . . Launcher 1 | . 1 Special Weapon 1 | . 1 Impact Weapon . | . . Slashing Weapon . | . . Piercing Weapon . | . . Special Melee Weapon . | . . Unidentified Prototypes 1 | . 1 Parts Lost 9 | . 9 Power 1 | . 1 Propulsion 3 | . 3 Utility 1 | . 1 Weapon 4 | . 4 Highest Loss Streak 6 | . 6 To Critical Strikes . | . . Average Slot Usage (%) 88 | . 88 Engine 3 | . 3 Core 8 | . 8 Leg 3 | . 3 Wheel 23 | . 23 Device 2 | . 2 Processor 14 | . 14 Protection 8 | . 8 Energy Gun 7 | . 7 Ballistic Gun 7 | . 7 Launcher 2 | . 2 Special Weapon 6 | . 6 Naked Turns . | . . Heaviest Build 12 | 7 12 Greatest Support 26 | 20 26 Greatest Overweight (x) 1 | . 1 Average Overweight (x) . | . . Largest Inventory Capacity 5 | 5 5 Average Capacity 5 | 5 5 Most Carried 4 | 4 3 Average Carried 1 | . 1 Final Capacity 5 | 5 5 Final Carried 4 | 4 3 Class Distribution -------------------- 76% | Mutant 23% | Scavenger-Mutant Dominant Class ---------------- Mutant | -10/Materials Resources | -11 -10 ----------- Run | Jun Mat Matter Collected 430 | 281 149 Remotely . | . . Salvage Created 236 | 37 199 Parts 17 | 1 16 Haulers Intercepted . | . . Recyclers Shooed 1 | . 1 Parts Field Recycled . | . . Retrieved Matter . | . . Parts Self-Destructed . | . . Prevented . | . . Kills | -11 -10 ------- Run | Jun Mat Combat Hostiles Destroyed 9 | 1 8 Guns 2 | . 2 Cannons 1 | . 1 AOE 6 | 1 5 Classes Destroyed 4 | 1 3 Worker 1 | . 1 Watcher 1 | . 1 Swarmer 4 | . 4 Grunt 5 | 1 4 Best Kill Streak 4 | 1 4 Combat Bots Only 3 | 1 3 Max Kills in Single Turn 3 | 1 3 Gunslinging . | . . Exploded 2 | 1 2 Melee . | . . Uniques/NPCs Destroyed . | . . Combat | -11 -10 -------- Run | Jun Mat Damage Taken 872 | . 872 Core 257 | . 257 Absorbed by Shields . | . . Redirected to Shielding 24 | . 24 Core Remaining (%) 100 | 100 . Volleys Fired 35 | 2 33 Largest 2 | 2 2 Hottest 120 | 80 120 Shots Fired 45 | 4 41 Gun 38 | 4 34 Cannon . | . . Launcher 5 | . 5 Special 2 | . 2 Kinetic 17 | 1 16 Thermal 2 | . 2 Explosive 5 | . 5 Electromagnetic 21 | 3 18 Robot Hit Streak 5 | 2 5 Robot Miss Streak 5 | . 5 Penetration Max . | . . Secondary Targets . | . . Shots Hit Robots 21 | 2 19 Core Hits 17 | 2 15 Critical Kills . | . . Critical Parts Destroyed . | . . Critical Strikes . | . . Melee Attacks . | . . Impact . | . . Slashing . | . . Piercing . | . . Sneak Attacks . | . . Combat Hostiles . | . . Follow-up Attacks . | . . Damage Inflicted 547 | 59 488 Guns 239 | 26 213 Cannons . | . . Explosions 283 | 33 250 Melee . | . . Ramming 1 | . 1 Kinetic 82 | . 82 Thermal 103 | 33 70 Explosive 204 | . 204 Electromagnetic 157 | 26 131 Impact . | . . Slashing . | . . Piercing . | . . Highest Corruption . | . . Average Corruption . | . . Corruption Purged . | . . Corruption Blocked . | . . Overload Shots . | . . Overflow Damage 44 | . 44 Projectiles . | . . Explosions 44 | . 44 Melee . | . . Knockbacks . | . . Impact . | . . Kinetic . | . . Secondary . | . . Self-Inflicted Damage 79 | . 79 Shots 2 | . 2 Rammed 2 | 1 1 Targets Rammed 2 | 1 1 Kicked . | . . Crushed . | . . Highest Temperature 90 | 3 90 Average Temperature 27 | 2 29 Received Heat Transfer 273 | . 273 Siege Activations . | . . Robots Corrupted . | . . Combat Hostiles . | . . Parts Fried . | . . Impact Corruptions . | . . Robots Melted . | . . Combat Hostiles . | . . Parts Melted . | . . Heat Transferred 150 | 50 100 Parts Sabotaged . | . . Parts Stolen . | . . Parts Stripped . | . . Power Chain Reactions 3 | 1 2 Missiles Intercepted . | . . Alert | -11 -10 ------- Run | Jun Mat Peak Influence 326 | 20 326 Initial 13 | . 13 Average 131 | 3 165 Maximum Alert Level 1 | . 1 Low Security (%) 71 | 100 64 Level 1 28 | . 35 Level 2 . | . . Level 3 . | . . Level 4 . | . . Level 5 . | . . High Security . | . . Max Security . | . . Squads Dispatched 2 | . 2 Investigation 2 | . 2 Extermination . | . . Reinforcement . | . . Assault . | . . Garrison . | . . Intercept . | . . Searches Triggered . | . . Construction Impeded . | . . Haulers Reinforced . | . . Active Scanning Responses . | . . Cargo Convoy Interrupts . | . . Stealth | -11 -10 --------- Run | Jun Mat Distress Signals . | . . Communications Jammed . | . . Distress Signals . | . . Times Spotted 21 | 1 20 Peak Tracking Total 5 | 1 5 Tactical Retreats 3 | . 3 Traps | -11 -10 ------- Run | Jun Mat Traps Triggered 1 | . 1 Indirectly . | . . Trap Hack Attempts . | . . Triggered . | . . Disarmed . | . . Reprogrammed . | . . Reused . | . . Traps Extracted . | . . Installed . | . . Triggered . | . . Machines | -11 -10 ---------- Run | Jun Mat Machines Disabled . | . . Max in Single Turn . | . . Machines Repaired . | . . Machines Sabotaged . | . . Overloaded Fab Kills . | . . Hacking | -11 -10 --------- Run | Jun Mat Machines Accessed 5 | . 5 Terminals 3 | . 3 Fabricators . | . . Repair Stations 1 | . 1 Recycling Units 1 | . 1 Scanalyzers . | . . Garrison Access . | . . Total Hacks 13 | . 13 Successful 9 | . 9 Failed 4 | . 4 Catastrophic 1 | . 1 Database Lockouts . | . . Manual 1 | . 1 Terminals 8 | . 8 Fabricators . | . . Repair Stations 4 | . 4 Recycling Units 1 | . 1 Scanalyzers . | . . Garrison Access . | . . Terminal Hacks 6 | . 6 Record 4 | . 4 Maintenance Status 1 | . 1 Zone Layout 1 | . 1 Fabricator Hacks . | . . Repair Station Hacks 2 | . 2 Scan Component 1 | . 1 Repair 1 | . 1 Recycling Unit Hacks 1 | . 1 Report Inventory 1 | . 1 Scanalyzer . | . . Garrison Access Hacks . | . . Unauthorized Hacks . | . . Terminals . | . . Fabricators . | . . Repair Stations . | . . Recycling Units . | . . Scanalyzers . | . . Garrison Access . | . . Data Cores Recovered . | . . Used . | . . Hacking Detections 4 | . 4 Full Trace Events 1 | . 1 Feedback Events . | . . Feedback Blocked . | . . Robot Schematics Acquired . | . . Robots Built . | . . Authchips . | . . Time . | . . Total Robot Build Rating . | . . Part Schematics Acquired . | . . Parts Built . | . . Authchips . | . . Time . | . . Total Part Build Rating . | . . Parts Repaired . | . . Time 38 | . 38 Parts Recycled . | . . Recycled Matter . | . . Retrieved Matter . | . . Retrieved Components . | . . Parts Scanalyzed . | . . Part Schematics Acquired . | . . Parts Damaged . | . . Bothacking | -11 -10 ------------ Run | Jun Mat Used RIF Installer . | . . Robots Hacked . | . . Non-combat . | . . Combat . | . . Robot Hacks Applied . | . . Relay Couplers Released . | . . Fabnet Peak Effective % . | . . Robots Rewired . | . . Allies Hacked . | . . Hacks Repelled . | . . Allies | -11 -10 -------- Run | Jun Mat Total Allies . | . . Largest Group . | . . Highest-Rated Group . | . . Highest-Rated Ally . | . . Total Orders . | . . Ally Attacks . | . . Total Damage . | . . Kills . | . . Allies Corrupted . | . . Allies Melted . | . . Intel | -11 -10 ------- Run | Jun Mat Robot Analysis Total . | . . Derelict Logs Recovered . | . . Drone Launches . | . . Drone Recoveries . | . . Exploration | -11 -10 ------------- Run | Jun Mat Turns Passed 648 | 136 512 Spaces Moved 563 | 126 437 Core 60 | 40 20 Treads . | . . Legs 34 | . 34 Wheels 469 | 86 383 Hover . | . . Flight . | . . Fastest Speed 50 | 50 50 Average Speed 81 | 70 84 Slowest Speed 120 | 80 120 Overloaded Moves . | . . Propulsion Burnouts . | . . Robots Hopped . | . . Cave-ins Triggered . | . . Exploration Rate (%) 33 | 5 61 Regions Visited 1 Branch Regions . Pre-discovered Areas . | . . Known Exits Taken . | . . Unknown Exits Taken 1 | 1 . Scrap Searched . | . . Spaces Dug . | . . Terrain Destroyed 40 | . 40 Melee . | . . Projectile . | . . AOE 40 | . 40 Terrain Rammed . | . . Walls Destroyed . | . . Machines Disabled . | . . Actions | -11 -10 --------- Run | Jun Mat Total 702 | 167 535 Wait 56 | 22 34 Move 562 | 125 437 Hop . | . . Pick Up 15 | 6 9 Fast Attach 11 | 2 9 Attach 3 | 3 . Detach . | . . Swap 9 | 3 6 Drop 9 | 3 6 Fire 35 | 2 33 Melee . | . . Ram 2 | 1 1 Kick . | . . Crush . | . . Escape Stasis . | . . Rewire . | . . Trap . | . . Miscellaneous . | . . Route ------- -11/Junkyard -10/Materials (discovered 3 exits: [*Mat x2] / [*Min]) History --------- Turn | Location | Event 2 | -11/Junkyard | Met Revision 17 108 | -11/Junkyard | Discovered new exit (range 8) 137 | -11/Junkyard | Entered Materials 275 | -10/Materials | Core integrity fell below 50% 298 | -10/Materials | Lost 6 parts (1p2n1u2w) 350 | -10/Materials | Discovered new exit (range 15) 367 | -10/Materials | Build established: Mutant 487 | -10/Materials | Discovered new exit (range 17) 606 | -10/Materials | Discovered new exit (range 15) 634 | -10/Materials | Core integrity fell below 20% 649 | -10/Materials | Destroyed by G-34 Mercenary with Small Laser Last Messages --------------- EXIT=FOUND Connecting with Repair Station... >>Scan(Lgt. Nuclear Core) Scanning Lgt. Nuclear Core... Ready to Repair: Lgt. Nuclear Core Rating: 3 Time: 38 >>Repair Repairing Lgt. Nuclear Core... ETC: 38 ALERT: Suspicious activity at Repair Station M001. Dispatching Investigation squad. [Achievement: One Hack Too Far] Wheel destroyed. Mining Laser destroyed. G-34 Mercenary destroyed. R-06 Scavenger collects Heat Sink. R-06 Scavenger collects Aluminum Leg. [Achievement: First Step to Greatness] Map ----- +----------------------------------------------------+ | ########+######### #?????????????????????????? | | ## #?????# #?????????????????????????? | | ## ####### #?????????????????????????? | | """ ## ## #######+??????????????????? | | """ ## ## ^ ?????????????????? | | """ ## / ^ ?????????????????? | | ## ## """ ?????????????????? | | """ ## === ### """ ######????????????????????? | | """ ## ==/ #?# """ ##?????????????????????????? | | """ ## == #?# #??????????????????????????? | | ## #?# #??????????????????????????? | | ## #?# """ #??????????????????????????? | | ###### [ #?# """ #??????????????????????????? | | ?????#######?# """ #??????????????????????????? | | ??????????#### ^ !#??????????????????????????? | | ??????????+ ^ #??????????????????????????? | | ??????????## """ #??????????????????????????? | | ???????????# """ #??????????????????????????? | | ???????????# ^ """ #??????????????????????????? | | ???????????# ^ #??????????????????????????? | | ???????????# #########??????????????????? | | ???????????# # #??????????????????? | | ???????????# # """#??????????????????? | | ???????????# #r R"#??????????????????? | | ???????????###+#### #rg """#??????????????????? | | ??????????????????# + g@ #??????????????????? | | ??????????????????# < # """ #??????????????????? | | ??????????????????# # """ #??????????????????? | | ??????????????????##### """ #??????????????????? | | ??????????????????????# #??????????????????? | | ??????????????????????# #??????????????????? | | ??????????????????????# #??????????????????? | | ??????????????????????#########??????????????????? | | | | | | | | | | | | | | | | | | | | | | | | | | | | | | | | | | | +----------------------------------------------------+ Best States ------------- Heat Dissipation 25 Energy Generation 14 Energy Capacity 160 Matter Stores 300 Matter Capacity 300 Sight Range 18 Terrain Scan Density 10 Core Shielding 20 Evasion (%) 55 Item Schematics ----------------- None Robot Schematics ------------------ None Fabricated ------------ Nothing Alien Tech Used ----------------- None Achievements -------------- First Step to Greatness Let's See Who's Tougher One Hack Too Far Risk Taker Storm Trooper Challenges ------------ None Game ------ Seed GravitonDynamicRipper Manual? 0 Play Time 00:48:22 Cumulative 1.5 hours Start 2023.04.24 @ 03:39:47 End 2023.04.24 @ 04:37:52 Sessions 1 Manual Loads 0 Difficulty Rogue Special Mode None Game No. 1 Rogue 1 Adventurer 0 Explorer 0 Win Type - Total 0 Types 0/0/0/0/0/0/0/0/0 Lore% 0 Gallery% 1 Achievement% 1 Wizard Run 0 Options --------- ASCII 0 Keyboard 1 Movement Numpad Keybinds 0 Fullscreen 1 Font 18/SmallcapsGlow Map View 76x50 Tactical HUD 0 Map Filters NONE Filters NONE Steam 1 RUN: 97199bc4-aea9-4eaf-91a4-a39aee556d10